Workbook

Sheet 0. Hinweise
A1: Hinweise zur Anwendung dieser Kalkulationsgrundlage
A2: - bitte beachten! -
B4: Kontakt:
B5: Professur für Abfall- und Ressourcenmanagement
B6: Heinrich-Buff-Ring 26
B7: 35392 Gießen
B8: Tel. 0641-9937376 | L8: Doppelklick zum Öffnen des Dokumentes!
B9: Fax. 0641-9937389
B11: Ansprechpartner:
B12: Prof. Dr. Stefan Gäth | D12: 0641-9937381 | E12: stefan.a.gaeth@umwelt.uni-giessen.de
B13: Dr. Jörg Nispel | D13: 0641-9937377 | E13: joerg.nispel@umwelt.uni-giessen.de
B15: www.einfälle-für-abfälle.de
B17: In Zusammenarbeit mit:
B18: Ministerium für Umwelt, Klima und Energiewirtschaft BaWü
B19: www.um.baden-wuerttemberg.de
B21: und
B22: Abfallwirtschaftsamt des Zollernalbkreises
B23: www.zollernalbkreis.de
B24: Leiter Abfallwirtschaftsamt
B25: Friedrich Scholte-Reh

Sheet 1. Kenndaten & Ablagerungsmenge
A1: Ressourcenpotenzial von Abfalldeponien [Blatt 1/7]
A3: Schritt 1: | B3: Kenndaten der Deponie
B4: Deponiebezeichnung | C4: Kreismülldeponie Hechingen (KMDH)
B5: Betreiber | C5: Zollernalbkreis
B6: Straße
B7: Hausnummer
B8: PLZ
B9: Ort
B10: Ablagerungszeitraum | C10: von | E10: bis
B11: Gesamt | C11: 1982 | E11: 2004
B12: Ablagerung organischer Substanz | C12: 1982 | E12: 2004
A14: Schritt 2: | B14: Ablagerungsmengen nach definierten Abfallarten
A15: Hinweis | B15: Abfallart | C15: Masse [Mg FM] | E15: Anteile [Gew.-% FM]
A16: Im Folgenden als Deponiegut bezeichnet | B16: Hausmüll und hausmüllähnlicher Gewerbeabfall | C16: 795373.311 | E16: =IF(C$29=0,"",C16/C$29) -> 0.372778026
B17: Gewerbeabfall | C17: 640683.0083 | E17: 0.300277296
B18: Sperrmüll | C18: 99715.405 | E18: 0.04673492475
B19: Sande | C19: 58384.37592 | E19: 0.02736377007
B20: Bauschutt | C20: 261837.36 | E20: 0.1227187446
A21: Definitionen der Zusammensetzung sind eigenständig vorzunehmen | B21: Schlämme | C21: 164338.4833 | E21: 0.07702266919
B22: Rekultivierungs- und Bodenmaterial | C22: 113305.92 | E22: 0.0531045694
B23: Profilierungsmaterial | C23: 0 | E23: 0
B24: Besonders wertstoffhaltige Abfälle | C24: 0 | E24: 0
B25: Kritische Abfälle | C25: 0 | E25: 0
B26: Optional (Eingabe vornehmen) | C26: 0 | E26: =IF(C$29=0,"",C26/C$29) -> 0
B27: Optional (Eingabe vornehmen) | C27: 0 | E27: 0
B28: Optional (Eingabe vornehmen) | C28: 0 | E28: 0
A29: Gesamtablagerungsmenge | C29: =SUM(C16:C28) -> 2133637.864 | E29: =SUM(E16:E28) -> 1
A34: Kontakt:
A35: Professur für Abfall- und Ressourcenmanagement
A36: Heinrich-Buff-Ring 26
A37: 35392 Gießen
A38: Tel. 0641-9937376
A39: Fax. 0641-9937389
A41: Ansprechpartner:
A42: Prof. Dr. Stefan Gäth | C42: 0641-9937381 | D42: stefan.a.gaeth@umwelt.uni-giessen.de
A43: Dr. Jörg Nispel | C43: 0641-9937377 | D43: joerg.nispel@umwelt.uni-giessen.de
A45: www.einfälle-für-abfälle.de

Sheet 2. Deponiegutzusammensetzung
A1: Ressourcenpotenzial von Abfalldeponien [Blatt 2/7]
A3: Schritt 3: | B3: Reale Potenzialermittlung | E3: Ausgangsdaten | F3: [Mg FM]
E4: Deponiegut | F4: =SUM('1. Kenndaten & Ablagerungsmenge'!C16:D20) -> 1855993.46
E5: Schlämme | F5: ='1. Kenndaten & Ablagerungsmenge'!C21 -> 164338.4833
E6: Rekultivierung | F6: ='1. Kenndaten & Ablagerungsmenge'!C22 -> 113305.92
E7: Profilierungsmaterial | F7: ='1. Kenndaten & Ablagerungsmenge'!C23 -> 0
E8: Wertstoffhaltige Abfälle | F8: ='1. Kenndaten & Ablagerungsmenge'!C24 -> 0
E9: Kritische Abfälle | F9: ='1. Kenndaten & Ablagerungsmenge'!C25 -> 0
E10: ='1. Kenndaten & Ablagerungsmenge'!B26 -> Optional (Eingabe vornehmen) | F10: ='1. Kenndaten & Ablagerungsmenge'!C26 -> 0
E11: ='1. Kenndaten & Ablagerungsmenge'!B27 -> Optional (Eingabe vornehmen) | F11: ='1. Kenndaten & Ablagerungsmenge'!C27 -> 0
E12: ='1. Kenndaten & Ablagerungsmenge'!B28 -> Optional (Eingabe vornehmen) | F12: ='1. Kenndaten & Ablagerungsmenge'!C28 -> 0
E13: Summe | F13: =SUM(F4:F12) -> 2133637.864
A15: Zusammensetzung der Abfälle [Gew.-% FM]
C16: Stofffraktionen | E16: =E36 -> Deponiegut | F16: Schlämme | G16: Rekultivierung | H16: Profilierungsmaterial | I16: Wertstoffhaltige Abfälle | J16: Kritische Abfälle | K16: Optional (Eingabe vornehmen) | L16: Optional (Eingabe vornehmen) | M16: Optional (Eingabe vornehmen)
B17: bitte auswählen1 | C17: Fe-Metalle | E17: 0.02771947354
C18: NE-Metalle | E18: 0.006276910057
C19: PPK | E19: 0.003174753769
B20: 1Eine direkte Übertragbarkeit der Ergebnisse ist nicht gewährleistet. Zudem differenzieren unterschiedliche Autoren ihren Stoffkatalog verschieden. Hierdurch können ggf. keine prozentualen Anteile auftauchen. | C20: Glas | E20: 0.04391158363
C21: Kunststoffe | E21: 0.1724451891
C22: Organik | E22: 6.395061709e-05
C23: Holz | E23: 0.03244385728
C24: Textilien | E24: 0.07650222272
C25: Mineralstoffe | E25: 0.1221207551 | G25: 1
C26: Verpackungen | E26: 0.00107930004
C27: Komplexe Produkte | E27: 0.002407009688
C28: Schadstoffe | E28: 0.0003769159687
C29: Stoffe anderweitig nicht genannt | E29: 0.00599987136
C30: Sortierreste | E30: 0.2502680571
C31: Fraktion < 5 mm | E31: 0.25521015 | F31: 1
C32: Summe | E32: =SUM(E17:E31) -> 1 | F32: =SUM(F17:F31) -> 1 | G32: 1 | H32: 0 | I32: 0 | J32: 0 | K32: 0 | L32: 0 | M32: 0
A35: Schritt 4: | B35: Gesamtbetrachtung [Mg FM] - Ablagerungspotenzial
A36: [Gew.-% FM] | B36: Summe | C36: Stofffraktionen | E36: =E4 -> Deponiegut | F36: =$E5 -> Schlämme | G36: =E6 -> Rekultivierung | H36: =E7 -> Profilierungsmaterial | I36: =E8 -> Wertstoffhaltige Abfälle | J36: =E9 -> Kritische Abfälle | K36: =E10 -> Optional (Eingabe vornehmen) | L36: =E11 -> Optional (Eingabe vornehmen) | M36: =E12 -> Optional (Eingabe vornehmen)
A37: =B37/$B$52 -> 0.024112415 | B37: =SUM(E37:M37) -> 51447.16162 | C37: Fe-Metalle | E37: =E17*$F$4 -> 51447.16162 | F37: =F17*$F$5 -> 0 | G37: =G17*$F$6 -> 0 | H37: =H17*$F$7 -> 0 | I37: =I17*$F$8 -> 0 | J37: =J17*$F$9 -> 0 | K37: =K17*$F$10 -> 0 | L37: =L17*$F$11 -> 0 | M37: =M17*$F$12 -> 0
A38: =B38/$B$52 -> 0.005460113084 | B38: =SUM(E38:M38) -> 11649.90402 | C38: NE-Metalle | E38: 11649.90402 | F38: 0 | G38: 0 | H38: =H18*$F$7 -> 0 | I38: =I18*$F$8 -> 0 | J38: =J18*$F$9 -> 0 | K38: =K18*$F$10 -> 0 | L38: =L18*$F$11 -> 0 | M38: =M18*$F$12 -> 0
A39: 0.002761631828 | B39: 5892.322234 | C39: PPK | E39: 5892.322234 | F39: 0 | G39: 0 | H39: 0 | I39: 0 | J39: 0 | K39: 0 | L39: 0 | M39: 0
A40: 0.03819749051 | B40: 81499.61204 | C40: Glas | E40: 81499.61204 | F40: 0 | G40: 0 | H40: 0 | I40: 0 | J40: 0 | K40: 0 | L40: 0 | M40: 0
A41: 0.1500053728 | B41: 320057.1431 | C41: Kunststoffe | E41: 320057.1431 | F41: 0 | G41: 0 | H41: 0 | I41: 0 | J41: 0 | K41: 0 | L41: 0 | M41: 0
A42: 5.562889988e-05 | B42: 118.6919271 | C42: Organik | E42: 118.6919271 | F42: 0 | G42: 0 | H42: 0 | I42: 0 | J42: 0 | K42: 0 | L42: 0 | M42: 0
A43: 0.02822202773 | B43: 60215.58694 | C43: Holz | E43: 60215.58694 | F43: 0 | G43: 0 | H43: 0 | I43: 0 | J43: 0 | K43: 0 | L43: 0 | M43: 0
A44: 0.06654719973 | B44: 141987.6251 | C44: Textilien | E44: 141987.6251 | F44: 0 | G44: 0 | H44: 0 | I44: 0 | J44: 0 | K44: 0 | L44: 0 | M44: 0
A45: 0.1593340879 | B45: 339961.2429 | C45: Mineralstoffe | E45: 226655.3229 | F45: 0 | G45: 113305.92 | H45: 0 | I45: 0 | J45: 0 | K45: 0 | L45: 0 | M45: 0
A46: 0.0009388537058 | B46: 2003.173815 | C46: Verpackungen | E46: 2003.173815 | F46: 0 | G46: 0 | H46: 0 | I46: 0 | J46: 0 | K46: 0 | L46: 0 | M46: 0
A47: 0.002093792164 | B47: 4467.39424 | C47: Komplexe Produkte | E47: 4467.39424 | F47: 0 | G47: 0 | H47: 0 | I47: 0 | J47: 0 | K47: 0 | L47: 0 | M47: 0
A48: 0.0003278689345 | B48: 699.553573 | C48: Schadstoffe | E48: 699.553573 | F48: 0 | G48: 0 | H48: 0 | I48: 0 | J48: 0 | K48: 0 | L48: 0 | M48: 0
A49: 0.005219124668 | B49: 11135.72201 | C49: Stoffe anderweitig nicht genannt | E49: 11135.72201 | F49: 0 | G49: 0 | H49: 0 | I49: 0 | J49: 0 | K49: 0 | L49: 0 | M49: 0
A50: 0.2177013659 | B50: 464495.8773 | C50: Sortierreste | E50: 464495.8773 | F50: 0 | G50: 0 | H50: 0 | I50: 0 | J50: 0 | K50: 0 | L50: 0 | M50: 0
A51: 0.2990230271 | B51: 638006.8528 | C51: Fraktion < 5 mm | E51: 473668.3694 | F51: 164338.4833 | G51: 0 | H51: 0 | I51: 0 | J51: 0 | K51: 0 | L51: 0 | M51: 0
A52: 1 | B52: 2133637.864 | C52: Summe | E52: =SUM(E37:E51) -> 1855993.46 | F52: =SUM(F37:F51) -> 164338.4833 | G52: 113305.92 | H52: 0 | I52: 0 | J52: 0 | K52: =SUM(K37:K51) -> 0 | L52: 0 | M52: 0
A53: Differenz | B53: =B52-F13 -> 0
A56: Schritt 5: | B56: Abbau der Organischen Substanz
B57: Stofffraktionen | C57: Organischer Abbau [% der FM] | E57: Stofffraktionen | F57: Organischer Abbau [% der FM]
B58: Fe-Metalle | E58: Mineralstoffe
B59: NE-Metalle | E59: Verpackungen
B60: PPK | C60: 0.66 | E60: Komplexe Produkte
B61: Glas | E61: Schadstoffe
B62: Kunststoffe | E62: Stoffe anderweitig nicht genannt
B63: Organik | C63: 0.66 | E63: Sortierreste | F63: 0.2
B64: Holz | C64: 0.2 | E64: Fraktion < 5 mm | F64: 0.05
B65: Textilien | C65: 0.1
A67: Gesamtbetrachtung [Mg FM] - Aktuelles Frischmassepotenzialorganischer Abbau berücksichtigt
B71: Reduktion der Ausgangsmasse [Mg FM] | C71: Stofffraktionen | E71: Vorher | F71: [Mg FM]
B72: =(1-C58)*B37 -> 51447.16162 | C72: Fe-Metalle | E72: Gesamtmasse | F72: =B52 -> 2133637.864
B73: =(1-C59)*B38 -> 11649.90402 | C73: NE-Metalle
B74: 2003.38956 | C74: PPK | E74: Nachher | F74: [Mg TM]
B75: 81499.61204 | C75: Glas | E75: Gesamtmasse | F75: =B87 -> 1978629.196
B76: 320057.1431 | C76: Kunststoffe | E76: Differenz | F76: =F72-F75 -> 155008.6673
B77: 40.35525521 | C77: Organik
B78: 48172.46955 | C78: Holz
B79: 127788.8626 | C79: Textilien
B80: =(1-F58)*B45 -> 339961.2429 | C80: Mineralstoffe
B81: =(1-F59)*B46 -> 2003.173815 | C81: Verpackungen
B82: 4467.39424 | C82: Komplexe Produkte
B83: 699.553573 | C83: Schadstoffe
B84: 11135.72201 | C84: Stoffe anderweitig nicht genannt
B85: 371596.7018 | C85: Sortierreste
B86: 606106.5101 | C86: Fraktion < 5 mm
B87: =SUM(B72:B86) -> 1978629.196 | C87: Summe
A88: Differenz | B88: =B87-B52 -> -155008.6673
A114: Schritt 6: | B114: Stoffspezifischer Wassergehalt - Trockenmassepotenzial
B118: Vorher | C118: [Mg FM] | E118: Nachher | F118: [Mg TM]
B119: Gesamtmasse | C119: =B87 -> 1978629.196 | E119: Gesamtmasse | F119: =SUM(F123:F139) -> 1380410.458
E120: Differenz | F120: =C119-F119 -> 598218.7381
B122: Stofffraktionen | C122: Wassergehalt [Gew.-% der FM] | E122: Stofffraktionen | F122: Masse [Mg TM]
B123: Fe-Metalle | C123: 0.014 | E123: Fe-Metalle | F123: =B72-B72*C123 -> 50726.90135
B124: NE-Metalle | C124: 0.02 | E124: NE-Metalle | F124: =B73-B73*C124 -> 11416.90594
B125: PPK | C125: 0.581 | E125: PPK | F125: 839.4202254
B126: Glas | C126: 0.018 | E126: Glas | F126: 80032.61902
B127: Kunststoffe | C127: 0.106 | E127: Kunststoffe | F127: 286131.086
B128: Organik | C128: 0.559 | E128: Organik | F128: 17.79666755
B129: Holz | C129: 0.562 | E129: Holz | F129: 21099.54167
B130: Textilien | C130: 0.524 | E130: Textilien | F130: 60827.49858
B131: Mineralstoffe | C131: 0.11 | E131: Mineralstoffe | F131: 302565.5062
B132: Verpackungen | C132: 0.406 | E132: Verpackungen | F132: 1189.885246
B133: Komplexe Produkte | C133: 0.406 | E133: Komplexe Produkte | F133: 2653.632178
B134: Schadstoffe | C134: 0.18 | E134: Schadstoffe | F134: 573.6339299
B135: Stoffe anderweitig nicht genannt | C135: 0.533 | E135: Stoffe anderweitig nicht genannt | F135: 5200.382177
B136: Sortierreste | C136: 0.419 | E136: Sortierreste | F136: 215897.6838
B137: Fraktion < 5 mm | C137: 0.437 | E137: Fraktion < 5 mm | F137: 341237.9652
A162: Kontakt:
A163: Professur für Abfall- und Ressourcenmanagement
A164: Heinrich-Buff-Ring 26
A165: 35392 Gießen
A166: Tel. 0641-9937376
A167: Fax. 0641-9937389
A169: Ansprechpartner:
A170: Prof. Dr. Stefan Gäth | C170: 0641-9937381 | D170: stefan.a.gaeth@umwelt.uni-giessen.de
A171: Dr. Jörg Nispel | C171: 0641-9937377 | D171: joerg.nispel@umwelt.uni-giessen.de
A173: www.einfälle-für-abfälle.de

Sheet 3. Kosten der Deponienachsorge
A1: Ressourcenpotenzial von Abfalldeponien [Blatt 3/7]
A3: Schritt 7: | B3: Kosten der Deponienachsorge
A4: Bilanzierungsmodell: | E4: Angenommene Kostenabschätzung:
A5: Rahmenbedingungen | C5: Hinweis: | E5: Angenommene Ablagerungsmasse
A6: Nachsorgebeginn [Jahr] | B6: 2012 | C6: Sollten keine Kostenschätzungen vorliegen, kann eine Berechnung über nebenstehende Angaben vorgenommen werden. Kosten die in die Kalkulation einfließen stehen in der Tabelle "Einzusparende Nachsorgekosten"! | E6: 2133637.864 | F6: Mg FM
A7: Nachsorgedauer [Jahre] | B7: 50
A8: Nachsorgeende [Jahr] | B8: =B6+B7 -> 2062
A9: Nachsorgekosten [€*Mg-1] | B9: 15
A10: Gesamtkosten [€] | B10: =B9*E6 -> 32004567.95
A11: Kostenentwicklung pro Jahr | B11: 0
A13: Kostenentwicklung | B13: Spezifische Kosten [€*Mg-1] | C13: Gesamtkosten [€] | E13: Einzusparende Nachsorgekosten
A14: Jahr | B14: Spez. Kosten [€*(Mg*Jahr)-1] | C14: Gesamtkosten [€] | E14: Jahr | F14: Gesamtkosten [€]
A15: =B6 -> 2012 | B15: =B9 -> 15 | C15: =B15*$E$6 -> 32004567.95 | E15: =A15 -> 2012 | F15: 32004567.95
A16: 2020 | B16: =B15*POWER(1+$B$11,(A16-A15)) -> 15 | C16: =B16*$E$6 -> 32004567.95 | E16: 2020 | F16: 26883837.08
A17: 2030 | B17: =B16*POWER(1+$B$11,(A17-A16)) -> 15 | C17: 32004567.95 | E17: 2030 | F17: 20482923.49
A18: 2040 | B18: 15 | C18: 32004567.95 | E18: 2040 | F18: 14082009.9
A19: 2050 | B19: 15 | C19: 32004567.95 | E19: 2050 | F19: 7681096.309
A20: 2060 | B20: 15 | C20: 32004567.95 | E20: 2060 | F20: 1280182.718
A44: Kontakt:
A45: Professur für Abfall- und Ressourcenmanagement
A46: Heinrich-Buff-Ring 26
A47: 35392 Gießen
A48: Tel. 0641-9937376
A49: Fax. 0641-9937389
A51: Ansprechpartner:
A52: Prof. Dr. Stefan Gäth | C52: 0641-9937381 | D52: stefan.a.gaeth@umwelt.uni-giessen.de
A53: Dr. Jörg Nispel | C53: 0641-9937377 | D53: joerg.nispel@umwelt.uni-giessen.de
A55: www.einfälle-für-abfälle.de
A2012: 2

Sheet 4. Erlöse Sekundärrohstoffe
A1: Ressourcenpotenzial von Abfalldeponien [Blatt 4/7]
A3: Schritt 8: | B3: Preisentwicklung ausgewählter Sekundärrohstoffe
F4: Eigenständige Preisentwicklung definieren
A5: Jahr | B5: Stahlschrott/NE-Sonstige | C5: Kupferschrott | D5: Aluminiumschrott | F5: Modell I: Prozentuale Preissteigerung in Abhängigkeit des Vorjahreswerts | K5: Modell II: Prozentuale Preissteigerung des Ausgangswerts
B6: Marktpreis [€*Mg-1] | C6: Marktpreis [€*Mg-1] | D6: Marktpreis [€*Mg-1] | G6: Stahlschrott/NE-Sonstige | H6: Kupfer | I6: Aluminium | L6: Stahl/Sonstige | M6: Kupfer | N6: Aluminium
A7: 2012 | B7: 286.9280284 | C7: 5101.949335 | D7: 895.460003 | F7: Ausgangswert [€*Mg-1] | G7: 286.9280284 | H7: 5101.949335 | I7: 895.460003 | K7: Ausgangswert [€*Mg-1] | L7: 286.9280284 | M7: 5101.949335 | N7: 895.460003
A8: 2020 | B8: 429.2443306 | C8: 8163.118936 | D8: 959.9331232 | F8: Basisjahr | G8: 2012 | H8: 2012 | I8: 2012 | K8: Basisjahr | L8: 2012 | M8: 2012 | N8: 2012
A9: 2030 | B9: 607.1397082 | C9: 11989.58094 | D9: 1040.524523 | F9: Preissteigerung Pro Jahr [%] | G9: 0.03 | H9: 0.03 | I9: 0.03 | K9: Preissteigerung Pro Jahr [%] | L9: 0.062 | M9: 0.075 | N9: 0.009
A10: 2040 | B10: 785.0350858 | C10: 15816.04294 | D10: 1121.115924 | F10: Preisentwicklung | G10: [€*Mg-1] | H10: [€*Mg-1] | I10: [€*Mg-1] | K10: Preisentwicklung | L10: [€*Mg-1] | M10: [€*Mg-1] | N10: [€*Mg-1]
A11: 2050 | B11: 962.9304635 | C11: 19642.50494 | D11: 1201.707324 | F11: =G8 -> 2012 | G11: =G7 -> 286.9280284 | H11: =H7 -> 5101.949335 | I11: 895.460003 | K11: =L8 -> 2012 | L11: =L7 -> 286.9280284 | M11: =M7 -> 5101.949335 | N11: 895.460003
A12: 2060 | B12: 1140.825841 | C12: 23468.96694 | D12: 1282.298724 | F12: 2020 | G12: =G11*POWER((1+G$9),($F12-$F11)) -> 363.4718419 | H12: =H11*POWER((1+H$9),($F12-$F11)) -> 6462.996775 | I12: =I11*POWER((1+I$9),($F12-$F11)) -> 1134.341941 | K12: 2020 | L12: =L$11+(K12-K$11)*L$9*L$7 -> 429.2443306 | M12: =M$11+(K12-K$11)*M$9*M$7 -> 8163.118936 | N12: =N$11+(K12-K$11)*N$9*N$7 -> 959.9331232
F13: 2030 | G13: =G12*POWER((1+G$9),($F13-$F12)) -> 488.4757618 | H13: =H12*POWER((1+H$9),($F13-$F12)) -> 8685.727225 | I13: =I12*POWER((1+I$9),($F13-$F12)) -> 1524.460714 | K13: 2030 | L13: =L$11+(K13-K$11)*L$9*L$7 -> 607.1397082 | M13: =M$11+(K13-K$11)*M$9*M$7 -> 11989.58094 | N13: =N$11+(K13-K$11)*N$9*N$7 -> 1040.524523
A14: Schritt 9: | B14: Differenzierung der Metallfraktion | F14: 2040 | G14: 656.4705772 | H14: 11672.89108 | I14: 2048.747723 | K14: 2040 | L14: 785.0350858 | M14: 15816.04294 | N14: 1121.115924
A15: Fe-Metalle | B15: Mg FM | C15: 51447.16162 | F15: 2050 | G15: 882.2415613 | H15: 15687.38952 | I15: 2753.345622 | K15: 2050 | L15: 962.9304635 | M15: 19642.50494 | N15: 1201.707324
A16: NE-Metalle | B16: Mg FM | C16: 11649.90402 | F16: 2060 | G16: 1185.658885 | H16: 21082.53973 | I16: 3700.26628 | K16: 2060 | L16: 1140.825841 | M16: 23468.96694 | N16: 1282.298724
A17: Summe | B17: Mg FM | C17: =SUM(C15:C16) -> 63097.06563
A19: Annahme NE-Metalle | B19: Gew.-% | C19: Mg FM
A20: Aluminium | B20: 0.45 | C20: =$C$16*B20 -> 5242.456807
A21: Kupfer | B21: 0.5 | C21: =$C$16*B21 -> 5824.952008
A22: NE-Sonstige | B22: 0.05 | C22: 582.4952008
A23: Summe | B23: =SUM(B20:B22) -> 1 | C23: =SUM(C20:C22) -> 11649.90402
A25: Jahr | B25: Stahlschrott | C25: Kupferschrott | D25: Aluminiumschrott | E25: NE-Sonstige | F25: Summe
B26: Erlöse [€] | C26: Erlöse [€] | D26: Erlöse [€] | E26: Erlöse [€] | F26: Erlöse [€]
A27: =A7 -> 2012 | B27: =$C$15*B7 -> 14761632.65 | C27: =$C$21*C7 -> 29718610.03 | D27: =$C$20*D7 -> 4694410.388 | E27: =$C$22*B7 -> 167134.1996 | F27: =SUM(B27:E27) -> 49341787.27
A28: =A8 -> 2020 | B28: =$C$15*B8 -> 22083402.45 | C28: =$C$21*C8 -> 47549776.04 | D28: =$C$20*D8 -> 5032407.936 | E28: =$C$22*B8 -> 250032.7625 | F28: =SUM(B28:E28) -> 74915619.19
A29: 2030 | B29: 31235614.69 | C29: 69838733.56 | D29: 5454904.871 | E29: 353655.9663 | F29: 106882909.1
A30: 2040 | B30: 40387826.93 | C30: 92127691.08 | D30: 5877401.806 | E30: 457279.17 | F30: 138850199
A31: 2050 | B31: 49540039.18 | C31: 114416648.6 | D31: 6299898.741 | E31: 560902.3737 | F31: 170817488.9
A32: 2060 | B32: 58692251.42 | C32: 136705606.1 | D32: 6722395.676 | E32: 664525.5774 | F32: 202784778.8
A35: Kontakt:
A36: Professur für Abfall- und Ressourcenmanagement
A37: Heinrich-Buff-Ring 26
A38: 35392 Gießen
A39: Tel. 0641-9937376
A40: Fax. 0641-9937389
A42: Ansprechpartner:
A43: Prof. Dr. Stefan Gäth | C43: 0641-9937381 | D43: stefan.a.gaeth@umwelt.uni-giessen.de
A44: Dr. Jörg Nispel | C44: 0641-9937377 | D44: joerg.nispel@umwelt.uni-giessen.de
A46: www.einfälle-für-abfälle.de

Sheet 5. COO Einsparung
A1: Ressourcenpotenzial von Abfalldeponien [Blatt 5/7]
A3: Schritt 10: | B3: CO2-Einsparpotenzial
A5: Stofffraktion | B5: Menge | C5: Spez. Einsparung | D5: Einsparung Gesamt
B6: Mg FM | C6: Mg CO2*Mg-1 Input | D6: Mg CO2
A7: Stahlschrott | B7: ='4. Erlöse Sekundärrohstoffe'!C15 -> 51447.16162 | C7: 0.86 | D7: =C7*B7 -> 44244.55899
A8: Aluminium | B8: ='4. Erlöse Sekundärrohstoffe'!C20 -> 5242.456807 | C8: 9.87 | D8: 51743.04869
A9: Kupfer | B9: ='4. Erlöse Sekundärrohstoffe'!C21 -> 5824.952008 | C9: 3.52 | D9: 20503.83107
A10: PPK | B10: 5892.322234 | C10: 0.09 | D10: 530.309001
A11: Holz | B11: 60215.58694 | C11: 0.77 | D11: 46366.00195
A12: Kunststoffe | B12: 320057.1431 | C12: 1.855 | D12: =C12*B12 -> 593706.0005
A13: Summe: | D13: =SUM(D7:D12) -> 757093.7502
B15: Monätere Wertschätzung
C16: Spez. Erlös | D16: Gesamterlös
B17: Jahr | C17: €*Mg-1 CO2 | D17: €
B18: 2012 | C18: 13.52155341 | D18: =C18*$D$13 -> 10237083.58
B19: 2020 | C19: 13.52155341 | D19: =C19*$D$13 -> 10237083.58
B20: 2030 | C20: 13.52155341 | D20: 10237083.58
B21: 2040 | C21: 13.52155341 | D21: 10237083.58
B22: 2050 | C22: 13.52155341 | D22: 10237083.58
B23: 2060 | C23: 13.52155341 | D23: 10237083.58
A26: Kontakt:
A27: Professur für Abfall- und Ressourcenmanagement
A28: Heinrich-Buff-Ring 26
A29: 35392 Gießen
A30: Tel. 0641-9937376
A31: Fax. 0641-9937389
A33: Ansprechpartner:
A34: Prof. Dr. Stefan Gäth | C34: 0641-9937381 | D34: stefan.a.gaeth@umwelt.uni-giessen.de
A35: Dr. Jörg Nispel | C35: 0641-9937377 | D35: joerg.nispel@umwelt.uni-giessen.de
A37: www.einfälle-für-abfälle.de

Sheet 6. Kosten des Deponierückbaus
A1: Ressourcenpotenzial von Abfalldeponien [Blatt 6/7]
A3: Schritt 11: | B3: Kosten des Deponierückbaus
A5: Jahr | B5: Spez. Kosten | C5: Gesamtkosten | E5: Rückbaumasse Mg FM
B6: €*Mg-1 Deponiegut | C6: [€] | E6: 2103428.714
A7: 2012 | B7: 98.925 | C7: =B7*$E$6 -> 208081685.6
A8: 2020 | B8: 95.03655934 | C8: =B8*$E$6 -> 199902627.8
A9: 2030 | B9: 90.39023435 | C9: 190129414.4
A10: 2040 | B10: 85.97106758 | C10: 180834012.2
A11: 2050 | B11: 81.76795331 | C11: 171993060.9
A12: 2060 | B12: 77.77032874 | C12: 163584342.6
A14: Eigenständige Ermittlung der durchschnittlichen Rückbaukosten
A15: Ausgangsjahr | B15: ='4. Erlöse Sekundärrohstoffe'!A7 -> 2012
A16: Deponiegut Gesamt [Mg] | B16: =E6 -> 2103428.714
A18: Aufbereitungs- und Verwertungsschritte | B18: Spez. Kosten aktuell [€*Mg-1] | C18: Anteil an der Gesamtablagerungsmasse [%] | D18: Anteil Deponiegut [Mg] | E18: Rückbaukosten [€]
A19: Aufnahme Belüftung Aushub Verbrinung in Aufbereitungs-anlage | B19: 5 | C19: 1 | D19: =$B$16*C19 -> 2103428.714 | E19: =D19*B19 -> 10517143.57 | F19: =SUM(C19) -> 1
A20: Teilstrom 1 Aufbereitung Sieben, Klassieren Sortieren | B20: 10 | C20: 0.5 | D20: =$B$16*C20 -> 1051714.357 | E20: 10517143.57
A21: Teilstrom 2 Aufbereitung Sieben, Klassieren Sortieren | B21: 12 | C21: 0.25 | D21: 525857.1786 | E21: 6310286.143
A22: Teilstrom 3 Aufbereitung Sieben, Klassieren Sortieren | B22: 8 | C22: 0.25 | D22: 525857.1786 | E22: 4206857.429 | F22: =SUM(C20:C22) -> 1
A23: Entsorgung in MVA | B23: 90 | C23: 0.1 | D23: 210342.8714 | E23: 18930858.43
A24: Entsorgung als Ersatzbrennstoff | B24: 50 | C24: 0.05 | D24: 105171.4357 | E24: 5258571.786
A25: Entsorgung in MBA | B25: 110 | C25: 0.05 | D25: 105171.4357 | E25: 11568857.93
A26: Deponierung Klasse II | B26: 90 | C26: 0.47 | D26: 988611.4957 | E26: 88975034.62
A27: Deponierung Klasse I | B27: 50 | C27: 0.15 | D27: 315514.3072 | E27: 15775715.36
A28: Deponierung Klasse 0 | B28: 30 | C28: 0.05 | D28: 105171.4357 | E28: 3155143.072
A29: Verwendung zur Verfüllung/Rekultivierung fremd | B29: 5 | C29: 0.05 | D29: 105171.4357 | E29: 525857.1786
A30: Verwendung zur Rekultivierung eigen | B30: 2.5 | C30: 0.05 | D30: 105171.4357 | E30: 262928.5893
A31: Sonderbehandlung | B31: 200 | C31: 0.03 | D31: 63102.86143 | E31: 12620572.29 | F31: =SUM(C23:C31) -> 1
A32: sonstige Betriebskosten | B32: 1.5 | C32: 1 | D32: 2103428.714 | E32: 3155143.072 | F32: =C32 -> 1
A33: Transportkosten Teilstrom 1 | B33: 15 | C33: 0.15 | D33: 315514.3072 | E33: 4732714.607
A34: Transportkosten Teilstrom 2 | B34: 10 | C34: 0.25 | D34: 525857.1786 | E34: 5258571.786
A35: Transportkosten Teilstrom 3 | B35: 5 | C35: 0.6 | D35: 1262057.229 | E35: 6310286.143 | F35: =SUM(C33:C35) -> 1
A36: Summe Rückbau | E36: =SUM(E19:E35) -> 208081685.6
E37: =E36/B16 -> 98.925
A40: Kostenentwicklung des Deponierückbaus
A41: Ausgangsjahr | B41: =B15 -> 2012
A42: Spezifische Rückbaukosten [€*Mg-1] | B42: =E37 -> 98.925
A43: Jährliche Kostensteigerung [%] | B43: -0.005
A45: Kostenentwicklung | B45: Spezifische Kosten [€*Mg-1] | C45: Gesamtkosten [€]
A46: =B41 -> 2012 | B46: =B42 -> 98.925 | C46: =B46*$E$6 -> 208081685.6
A47: 2020 | B47: =B46*POWER(1+$B$43,(A47-A46)) -> 95.03655934 | C47: =B47*$E$6 -> 199902627.8
A48: 2030 | B48: =B47*POWER(1+$B$43,(A48-A47)) -> 90.39023435 | C48: 190129414.4
A49: 2040 | B49: 85.97106758 | C49: 180834012.2
A50: 2050 | B50: 81.76795331 | C50: 171993060.9
A51: 2060 | B51: 77.77032874 | C51: 163584342.6
A54: Kontakt:
A55: Professur für Abfall- und Ressourcenmanagement
A56: Heinrich-Buff-Ring 26
A57: 35392 Gießen
A58: Tel. 0641-9937376
A59: Fax. 0641-9937389
A61: Ansprechpartner:
A62: Prof. Dr. Stefan Gäth | C62: 0641-9937381 | D62: stefan.a.gaeth@umwelt.uni-giessen.de
A63: Dr. Jörg Nispel | C63: 0641-9937377 | D63: joerg.nispel@umwelt.uni-giessen.de
A65: www.einfälle-für-abfälle.de

Sheet 7. Ergebniszusammenfassung
B1: Ressourcenpotenzial von Abfalldeponien [Blatt 7/7]
B2: Ergebniszusammenfassung
B3: Stammdaten:
B4: Deponiebezeichnung | C4: ='1. Kenndaten & Ablagerungsmenge'!C4:F4 -> Kreismülldeponie Hechingen (KMDH)
B5: Betreiber | C5: ='1. Kenndaten & Ablagerungsmenge'!C5:F5 -> Zollernalbkreis
B6: Laufzeit | C6: ='1. Kenndaten & Ablagerungsmenge'!C11&" - " & '1. Kenndaten & Ablagerungsmenge'!E11 -> 1982 - 2004
B7: Ablagerungsmenge | C7: Summe | K7: ='1. Kenndaten & Ablagerungsmenge'!C29 -> 2133637.864 | L7: =SUM(L8:L20) -> 1
B8: Abfallarten | C8: ='1. Kenndaten & Ablagerungsmenge'!B16 -> Hausmüll und hausmüllähnlicher Gewerbeabfall | D8: ='1. Kenndaten & Ablagerungsmenge'!C16 -> 795373.311 | L8: =D8/$K$7 -> 0.372778026
C9: ='1. Kenndaten & Ablagerungsmenge'!B17 -> Gewerbeabfall | D9: ='1. Kenndaten & Ablagerungsmenge'!C17 -> 640683.0083 | L9: 0.300277296
C10: ='1. Kenndaten & Ablagerungsmenge'!B18 -> Sperrmüll | D10: ='1. Kenndaten & Ablagerungsmenge'!C18 -> 99715.405 | L10: 0.04673492475
C11: ='1. Kenndaten & Ablagerungsmenge'!B19 -> Sande | D11: ='1. Kenndaten & Ablagerungsmenge'!C19 -> 58384.37592 | L11: 0.02736377007
C12: ='1. Kenndaten & Ablagerungsmenge'!B20 -> Bauschutt | D12: ='1. Kenndaten & Ablagerungsmenge'!C20 -> 261837.36 | L12: 0.1227187446
C13: ='1. Kenndaten & Ablagerungsmenge'!B21 -> Schlämme | D13: ='1. Kenndaten & Ablagerungsmenge'!C21 -> 164338.4833 | L13: 0.07702266919
C14: ='1. Kenndaten & Ablagerungsmenge'!B22 -> Rekultivierungs- und Bodenmaterial | D14: ='1. Kenndaten & Ablagerungsmenge'!C22 -> 113305.92 | L14: 0.0531045694
C15: ='1. Kenndaten & Ablagerungsmenge'!B23 -> Profilierungsmaterial | D15: ='1. Kenndaten & Ablagerungsmenge'!C23 -> 0 | L15: 0
C16: ='1. Kenndaten & Ablagerungsmenge'!B24 -> Besonders wertstoffhaltige Abfälle | D16: ='1. Kenndaten & Ablagerungsmenge'!C24 -> 0 | L16: 0
C17: ='1. Kenndaten & Ablagerungsmenge'!B25 -> Kritische Abfälle | D17: ='1. Kenndaten & Ablagerungsmenge'!C25 -> 0 | L17: 0
C18: ='1. Kenndaten & Ablagerungsmenge'!B26 -> Optional (Eingabe vornehmen) | D18: ='1. Kenndaten & Ablagerungsmenge'!C26 -> 0 | L18: 0
C19: ='1. Kenndaten & Ablagerungsmenge'!B27 -> Optional (Eingabe vornehmen) | D19: ='1. Kenndaten & Ablagerungsmenge'!C27 -> 0 | L19: 0
C20: ='1. Kenndaten & Ablagerungsmenge'!B28 -> Optional (Eingabe vornehmen) | D20: ='1. Kenndaten & Ablagerungsmenge'!C28 -> 0 | L20: 0
B22: Ablagerungspotenzial
C23: Summe | K23: =SUM(K24:K38) -> 2133637.864 | L23: =SUM(L24:L38) -> 1
B24: Stofffraktionen | C24: ='2. Deponiegutzusammensetzung '!C37 -> Fe-Metalle | K24: ='2. Deponiegutzusammensetzung '!B37 -> 51447.16162 | L24: =K24/$K$23 -> 0.024112415
C25: ='2. Deponiegutzusammensetzung '!C38 -> NE-Metalle | K25: ='2. Deponiegutzusammensetzung '!B38 -> 11649.90402 | L25: 0.005460113084
C26: ='2. Deponiegutzusammensetzung '!C39 -> PPK | K26: ='2. Deponiegutzusammensetzung '!B39 -> 5892.322234 | L26: 0.002761631828
C27: ='2. Deponiegutzusammensetzung '!C40 -> Glas | K27: ='2. Deponiegutzusammensetzung '!B40 -> 81499.61204 | L27: 0.03819749051
C28: ='2. Deponiegutzusammensetzung '!C41 -> Kunststoffe | K28: ='2. Deponiegutzusammensetzung '!B41 -> 320057.1431 | L28: 0.1500053728
C29: ='2. Deponiegutzusammensetzung '!C42 -> Organik | K29: ='2. Deponiegutzusammensetzung '!B42 -> 118.6919271 | L29: 5.562889988e-05
C30: ='2. Deponiegutzusammensetzung '!C43 -> Holz | K30: ='2. Deponiegutzusammensetzung '!B43 -> 60215.58694 | L30: 0.02822202773
C31: ='2. Deponiegutzusammensetzung '!C44 -> Textilien | K31: ='2. Deponiegutzusammensetzung '!B44 -> 141987.6251 | L31: 0.06654719973
C32: ='2. Deponiegutzusammensetzung '!C45 -> Mineralstoffe | K32: ='2. Deponiegutzusammensetzung '!B45 -> 339961.2429 | L32: 0.1593340879
C33: ='2. Deponiegutzusammensetzung '!C46 -> Verpackungen | K33: ='2. Deponiegutzusammensetzung '!B46 -> 2003.173815 | L33: 0.0009388537058
C34: ='2. Deponiegutzusammensetzung '!C47 -> Komplexe Produkte | K34: ='2. Deponiegutzusammensetzung '!B47 -> 4467.39424 | L34: 0.002093792164
C35: ='2. Deponiegutzusammensetzung '!C48 -> Schadstoffe | K35: ='2. Deponiegutzusammensetzung '!B48 -> 699.553573 | L35: 0.0003278689345
C36: ='2. Deponiegutzusammensetzung '!C49 -> Stoffe anderweitig nicht genannt | K36: ='2. Deponiegutzusammensetzung '!B49 -> 11135.72201 | L36: 0.005219124668
C37: ='2. Deponiegutzusammensetzung '!C50 -> Sortierreste | K37: ='2. Deponiegutzusammensetzung '!B50 -> 464495.8773 | L37: 0.2177013659
C38: ='2. Deponiegutzusammensetzung '!C51 -> Fraktion < 5 mm | K38: ='2. Deponiegutzusammensetzung '!B51 -> 638006.8528 | L38: 0.2990230271
B40: Frischmassepotenzial
B41: Ablagerungspotenzial | C41: Summe | K41: =SUM(K43:K57) -> 1978629.196 | L41: =SUM(L43:L57) -> 0.9273500579
B42: =$K$23 -> 2133637.864 | C42: Abgebaute organische Substanz | K42: ='2. Deponiegutzusammensetzung '!B88*-1 -> 155008.6673 | L42: =K42/K23 -> 0.07264994214
B43: Stofffraktionen | C43: =C24 -> Fe-Metalle | K43: ='2. Deponiegutzusammensetzung '!B72 -> 51447.16162 | L43: =K43/$K$23 -> 0.024112415
C44: =C25 -> NE-Metalle | K44: ='2. Deponiegutzusammensetzung '!B73 -> 11649.90402 | L44: =K44/$K$23 -> 0.005460113084
C45: PPK | K45: ='2. Deponiegutzusammensetzung '!B74 -> 2003.38956 | L45: 0.0009389548216
C46: Glas | K46: ='2. Deponiegutzusammensetzung '!B75 -> 81499.61204 | L46: 0.03819749051
C47: Kunststoffe | K47: ='2. Deponiegutzusammensetzung '!B76 -> 320057.1431 | L47: 0.1500053728
C48: Organik | K48: ='2. Deponiegutzusammensetzung '!B77 -> 40.35525521 | L48: 1.891382596e-05
C49: Holz | K49: ='2. Deponiegutzusammensetzung '!B78 -> 48172.46955 | L49: 0.02257762218
C50: Textilien | K50: ='2. Deponiegutzusammensetzung '!B79 -> 127788.8626 | L50: 0.05989247976
C51: Mineralstoffe | K51: ='2. Deponiegutzusammensetzung '!B80 -> 339961.2429 | L51: 0.1593340879
C52: Verpackungen | K52: ='2. Deponiegutzusammensetzung '!B81 -> 2003.173815 | L52: 0.0009388537058
C53: Komplexe Produkte | K53: ='2. Deponiegutzusammensetzung '!B82 -> 4467.39424 | L53: 0.002093792164
C54: Schadstoffe | K54: ='2. Deponiegutzusammensetzung '!B83 -> 699.553573 | L54: 0.0003278689345
C55: Stoffe anderweitig nicht genannt | K55: ='2. Deponiegutzusammensetzung '!B84 -> 11135.72201 | L55: 0.005219124668
C56: Sortierreste | K56: ='2. Deponiegutzusammensetzung '!B85 -> 371596.7018 | L56: 0.1741610927
C57: Fraktion < 5 mm | K57: ='2. Deponiegutzusammensetzung '!B86 -> 606106.5101 | L57: 0.2840718758
B59: Trockenmassepotenzial
B60: Ablagerungspotenzial | C60: Summe | K60: =SUM(K63:K77) -> 1380410.458 | L60: =SUM(L63:L77) -> 0.6469750475
B61: =$K$23 -> 2133637.864 | C61: Abgebaute organische Substanz | K61: =K42 -> 155008.6673 | L61: =K61/K23 -> 0.07264994214
C62: Wasserverlust | K62: ='2. Deponiegutzusammensetzung '!F120 -> 598218.7381 | L62: =K62/K23 -> 0.2803750104
B63: Stofffraktionen | C63: =C43 -> Fe-Metalle | K63: ='2. Deponiegutzusammensetzung '!F123 -> 50726.90135 | L63: =K63/$K$23 -> 0.02377484119
C64: =C44 -> NE-Metalle | K64: ='2. Deponiegutzusammensetzung '!F124 -> 11416.90594 | L64: 0.005350910823
C65: PPK | K65: ='2. Deponiegutzusammensetzung '!F125 -> 839.4202254 | L65: 0.0003934220702
C66: Glas | K66: ='2. Deponiegutzusammensetzung '!F126 -> 80032.61902 | L66: 0.03750993568
C67: Kunststoffe | K67: ='2. Deponiegutzusammensetzung '!F127 -> 286131.086 | L67: 0.1341048033
C68: Organik | K68: ='2. Deponiegutzusammensetzung '!F128 -> 17.79666755 | L68: 8.340997249e-06
C69: Holz | K69: ='2. Deponiegutzusammensetzung '!F129 -> 21099.54167 | L69: 0.009888998515
C70: Textilien | K70: ='2. Deponiegutzusammensetzung '!F130 -> 60827.49858 | L70: 0.02850882037
C71: Mineralstoffe | K71: ='2. Deponiegutzusammensetzung '!F131 -> 302565.5062 | L71: 0.1418073382
C72: Verpackungen | K72: ='2. Deponiegutzusammensetzung '!F132 -> 1189.885246 | L72: 0.0005576791012
C73: Komplexe Produkte | K73: ='2. Deponiegutzusammensetzung '!F133 -> 2653.632178 | L73: 0.001243712545
C74: Schadstoffe | K74: ='2. Deponiegutzusammensetzung '!F134 -> 573.6339299 | L74: 0.0002688525263
C75: Stoffe anderweitig nicht genannt | K75: ='2. Deponiegutzusammensetzung '!F135 -> 5200.382177 | L75: 0.00243733122
C76: Sortierreste | K76: ='2. Deponiegutzusammensetzung '!F136 -> 215897.6838 | L76: 0.1011875949
C77: Fraktion < 5 mm | K77: ='2. Deponiegutzusammensetzung '!F137 -> 341237.9652 | L77: 0.1599324661
B79: Definierte Rahmenbedingungen
B80: "Deponiegutzusammensetzung gesamt" | C80: Summe | L80: =SUM(L81:L95) -> 1
B81: Stofffraktionen | C81: Fe-Metalle | L81: ='2. Deponiegutzusammensetzung '!A37 -> 0.024112415
C82: NE-Metalle | L82: ='2. Deponiegutzusammensetzung '!A38 -> 0.005460113084
C83: PPK | L83: ='2. Deponiegutzusammensetzung '!A39 -> 0.002761631828
C84: Glas | L84: ='2. Deponiegutzusammensetzung '!A40 -> 0.03819749051
C85: Kunststoffe | L85: ='2. Deponiegutzusammensetzung '!A41 -> 0.1500053728
C86: Organik | L86: ='2. Deponiegutzusammensetzung '!A42 -> 5.562889988e-05
C87: Holz | L87: ='2. Deponiegutzusammensetzung '!A43 -> 0.02822202773
C88: Textilien | L88: ='2. Deponiegutzusammensetzung '!A44 -> 0.06654719973
C89: Mineralstoffe | L89: ='2. Deponiegutzusammensetzung '!A45 -> 0.1593340879
C90: Verpackungen | L90: ='2. Deponiegutzusammensetzung '!A46 -> 0.0009388537058
C91: Komplexe Produkte | L91: ='2. Deponiegutzusammensetzung '!A47 -> 0.002093792164
C92: Schadstoffe | L92: ='2. Deponiegutzusammensetzung '!A48 -> 0.0003278689345
C93: Stoffe anderweitig nicht genannt | L93: ='2. Deponiegutzusammensetzung '!A49 -> 0.005219124668
C94: Sortierreste | L94: ='2. Deponiegutzusammensetzung '!A50 -> 0.2177013659
C95: Fraktion < 5 mm | L95: ='2. Deponiegutzusammensetzung '!A51 -> 0.2990230271
B97: Spezifischer Wassergehalt | C97: Mittelwert | L97: =AVERAGE(L98:L112) -> 0.325
B98: Stofffraktionen | C98: Fe-Metalle | L98: ='2. Deponiegutzusammensetzung '!C123 -> 0.014
C99: NE-Metalle | L99: ='2. Deponiegutzusammensetzung '!C124 -> 0.02
C100: PPK | L100: ='2. Deponiegutzusammensetzung '!C125 -> 0.581
C101: Glas | L101: ='2. Deponiegutzusammensetzung '!C126 -> 0.018
C102: Kunststoffe | L102: ='2. Deponiegutzusammensetzung '!C127 -> 0.106
C103: Organik | L103: ='2. Deponiegutzusammensetzung '!C128 -> 0.559
C104: Holz | L104: ='2. Deponiegutzusammensetzung '!C129 -> 0.562
C105: Textilien | L105: ='2. Deponiegutzusammensetzung '!C130 -> 0.524
C106: Mineralstoffe | L106: ='2. Deponiegutzusammensetzung '!C131 -> 0.11
C107: Verpackungen | L107: ='2. Deponiegutzusammensetzung '!C132 -> 0.406
C108: Komplexe Produkte | L108: ='2. Deponiegutzusammensetzung '!C133 -> 0.406
C109: Schadstoffe | L109: ='2. Deponiegutzusammensetzung '!C134 -> 0.18
C110: Stoffe anderweitig nicht genannt | L110: ='2. Deponiegutzusammensetzung '!C135 -> 0.533
C111: Sortierreste | L111: ='2. Deponiegutzusammensetzung '!C136 -> 0.419
C112: Fraktion < 5 mm | L112: ='2. Deponiegutzusammensetzung '!C137 -> 0.437
B114: Preisentwicklung metallischer Ressourcen
B115: Stahlschrott | C115: Preissteigerung 2012 bis 2060 | K115: [€*Mg-1] | L115: =L121-L116 -> 853.8978126
C116: ='4. Erlöse Sekundärrohstoffe'!A7 -> 2012 | K116: [€*Mg-1] | L116: ='4. Erlöse Sekundärrohstoffe'!B7 -> 286.9280284
C117: ='4. Erlöse Sekundärrohstoffe'!A8 -> 2020 | K117: [€*Mg-1] | L117: ='4. Erlöse Sekundärrohstoffe'!B8 -> 429.2443306
C118: ='4. Erlöse Sekundärrohstoffe'!A9 -> 2030 | K118: [€*Mg-1] | L118: ='4. Erlöse Sekundärrohstoffe'!B9 -> 607.1397082
C119: ='4. Erlöse Sekundärrohstoffe'!A10 -> 2040 | K119: [€*Mg-1] | L119: ='4. Erlöse Sekundärrohstoffe'!B10 -> 785.0350858
C120: ='4. Erlöse Sekundärrohstoffe'!A11 -> 2050 | K120: [€*Mg-1] | L120: ='4. Erlöse Sekundärrohstoffe'!B11 -> 962.9304635
C121: ='4. Erlöse Sekundärrohstoffe'!A12 -> 2060 | K121: [€*Mg-1] | L121: ='4. Erlöse Sekundärrohstoffe'!B12 -> 1140.825841
B123: Kupferschrott | C123: Preissteigerung 2012 bis 2060 | K123: [€*Mg-1] | L123: =L129-L124 -> 18367.01761
C124: =C116 -> 2012 | K124: [€*Mg-1] | L124: ='4. Erlöse Sekundärrohstoffe'!C7 -> 5101.949335
C125: =C117 -> 2020 | K125: [€*Mg-1] | L125: ='4. Erlöse Sekundärrohstoffe'!C8 -> 8163.118936
C126: 2030 | K126: [€*Mg-1] | L126: ='4. Erlöse Sekundärrohstoffe'!C9 -> 11989.58094
C127: 2040 | K127: [€*Mg-1] | L127: ='4. Erlöse Sekundärrohstoffe'!C10 -> 15816.04294
C128: 2050 | K128: [€*Mg-1] | L128: ='4. Erlöse Sekundärrohstoffe'!C11 -> 19642.50494
C129: 2060 | K129: [€*Mg-1] | L129: ='4. Erlöse Sekundärrohstoffe'!C12 -> 23468.96694
B131: Aluminiumschrott | C131: Preissteigerung 2012 bis 2060 | K131: [€*Mg-1] | L131: =L137-L132 -> 386.8387213
C132: =C124 -> 2012 | K132: [€*Mg-1] | L132: ='4. Erlöse Sekundärrohstoffe'!D7 -> 895.460003
C133: =C125 -> 2020 | K133: [€*Mg-1] | L133: ='4. Erlöse Sekundärrohstoffe'!D8 -> 959.9331232
C134: 2030 | K134: [€*Mg-1] | L134: ='4. Erlöse Sekundärrohstoffe'!D9 -> 1040.524523
C135: 2040 | K135: [€*Mg-1] | L135: ='4. Erlöse Sekundärrohstoffe'!D10 -> 1121.115924
C136: 2050 | K136: [€*Mg-1] | L136: ='4. Erlöse Sekundärrohstoffe'!D11 -> 1201.707324
C137: 2060 | K137: [€*Mg-1] | L137: ='4. Erlöse Sekundärrohstoffe'!D12 -> 1282.298724
B139: Erlöse der Metallvermarktung
B140: Stahlschrott | C140: Ablagerungspotenzial
C141: =C132 -> 2012 | K141: [€] | L141: ='4. Erlöse Sekundärrohstoffe'!B27 -> 14761632.65
C142: =C133 -> 2020 | K142: [€] | L142: ='4. Erlöse Sekundärrohstoffe'!B28 -> 22083402.45
C143: 2030 | K143: [€] | L143: ='4. Erlöse Sekundärrohstoffe'!B29 -> 31235614.69
C144: 2040 | K144: [€] | L144: ='4. Erlöse Sekundärrohstoffe'!B30 -> 40387826.93
C145: 2050 | K145: [€] | L145: ='4. Erlöse Sekundärrohstoffe'!B31 -> 49540039.18
C146: 2060 | K146: [€] | L146: ='4. Erlöse Sekundärrohstoffe'!B32 -> 58692251.42
B148: Kupferschrott
C149: =C141 -> 2012 | K149: [€] | L149: ='4. Erlöse Sekundärrohstoffe'!C27 -> 29718610.03
C150: =C142 -> 2020 | K150: [€] | L150: ='4. Erlöse Sekundärrohstoffe'!C28 -> 47549776.04
C151: 2030 | K151: [€] | L151: ='4. Erlöse Sekundärrohstoffe'!C29 -> 69838733.56
C152: 2040 | K152: [€] | L152: ='4. Erlöse Sekundärrohstoffe'!C30 -> 92127691.08
C153: 2050 | K153: [€] | L153: ='4. Erlöse Sekundärrohstoffe'!C31 -> 114416648.6
C154: 2060 | K154: [€] | L154: ='4. Erlöse Sekundärrohstoffe'!C32 -> 136705606.1
B156: Aluminiumschrott
C157: =C149 -> 2012 | K157: [€] | L157: ='4. Erlöse Sekundärrohstoffe'!D27 -> 4694410.388
C158: =C150 -> 2020 | K158: [€] | L158: ='4. Erlöse Sekundärrohstoffe'!D28 -> 5032407.936
C159: 2030 | K159: [€] | L159: ='4. Erlöse Sekundärrohstoffe'!D29 -> 5454904.871
C160: 2040 | K160: [€] | L160: ='4. Erlöse Sekundärrohstoffe'!D30 -> 5877401.806
C161: 2050 | K161: [€] | L161: ='4. Erlöse Sekundärrohstoffe'!D31 -> 6299898.741
C162: 2060 | K162: [€] | L162: ='4. Erlöse Sekundärrohstoffe'!D32 -> 6722395.676
B164: Sonstige NE-Metalle
C165: =C157 -> 2012 | K165: [€] | L165: ='4. Erlöse Sekundärrohstoffe'!E27 -> 167134.1996
C166: =C158 -> 2020 | K166: [€] | L166: ='4. Erlöse Sekundärrohstoffe'!E28 -> 250032.7625
C167: 2030 | K167: [€] | L167: ='4. Erlöse Sekundärrohstoffe'!E29 -> 353655.9663
C168: 2040 | K168: [€] | L168: ='4. Erlöse Sekundärrohstoffe'!E30 -> 457279.17
C169: 2050 | K169: [€] | L169: ='4. Erlöse Sekundärrohstoffe'!E31 -> 560902.3737
C170: 2060 | K170: [€] | L170: ='4. Erlöse Sekundärrohstoffe'!E32 -> 664525.5774
B172: Gesamterlöse der Metallvermarktung
C173: =C165 -> 2012 | K173: [€] | L173: =L141+L149+L157+L165 -> 49341787.27
C174: =C166 -> 2020 | K174: [€] | L174: =L142+L150+L158+L166 -> 74915619.19
C175: 2030 | K175: [€] | L175: 106882909.1
C176: 2040 | K176: [€] | L176: 138850199
C177: 2050 | K177: [€] | L177: 170817488.9
C178: 2060 | K178: [€] | L178: 202784778.8
B180: Kosten des Deponierückbaus
C182: =C173 -> 2012 | K182: [€] | L182: ='6. Kosten des Deponierückbaus'!C7 -> 208081685.6
C183: =C174 -> 2020 | K183: [€] | L183: ='6. Kosten des Deponierückbaus'!C8 -> 199902627.8
C184: 2030 | K184: [€] | L184: ='6. Kosten des Deponierückbaus'!C9 -> 190129414.4
C185: 2040 | K185: [€] | L185: ='6. Kosten des Deponierückbaus'!C10 -> 180834012.2
C186: 2050 | K186: [€] | L186: ='6. Kosten des Deponierückbaus'!C11 -> 171993060.9
C187: 2060 | K187: [€] | L187: ='6. Kosten des Deponierückbaus'!C12 -> 163584342.6
B189: Einzusparende Nachsorgekosten
C191: =C182 -> 2012 | K191: [€] | L191: ='3. Kosten der Deponienachsorge'!F15 -> 32004567.95
C192: =C183 -> 2020 | K192: [€] | L192: ='3. Kosten der Deponienachsorge'!F16 -> 26883837.08
C193: 2030 | K193: [€] | L193: ='3. Kosten der Deponienachsorge'!F17 -> 20482923.49
C194: 2040 | K194: [€] | L194: ='3. Kosten der Deponienachsorge'!F18 -> 14082009.9
C195: 2050 | K195: [€] | L195: ='3. Kosten der Deponienachsorge'!F19 -> 7681096.309
C196: 2060 | K196: [€] | L196: ='3. Kosten der Deponienachsorge'!F20 -> 1280182.718
B198: CO2-Einsparungen
C200: =C191 -> 2012 | K200: [€] | L200: ='5. COO Einsparung'!D18 -> 10237083.58
C201: =C192 -> 2020 | K201: [€] | L201: ='5. COO Einsparung'!D19 -> 10237083.58
C202: 2030 | K202: [€] | L202: ='5. COO Einsparung'!D20 -> 10237083.58
C203: 2040 | K203: [€] | L203: ='5. COO Einsparung'!D21 -> 10237083.58
C204: 2050 | K204: [€] | L204: ='5. COO Einsparung'!D22 -> 10237083.58
C205: 2060 | K205: [€] | L205: ='5. COO Einsparung'!D23 -> 10237083.58
B207: Gesamtbetrachtung
B208: Betrachtung | C208: =C200 -> 2012
B209: Kosten des Deponierückbaus | L209: =L182 -> 208081685.6
B210: Erlöse der Metallvermarktung | L210: =L173 -> 49341787.27
B211: Entfallende Nachsorge- und Folgekosten | L211: =L191 -> 32004567.95
B212: CO2-Einsparpotenzial | L212: =L200 -> 10237083.58
B213: Bilanz | L213: =SUM(L210:L212)-L209 -> -116498246.8
B215: Betrachtung | C215: =C201 -> 2020
B216: Kosten des Deponierückbaus | L216: =L183 -> 199902627.8
B217: Erlöse der Metallvermarktung | L217: =L174 -> 74915619.19
B218: Entfallende Nachsorge- und Folgekosten | L218: =L192 -> 26883837.08
B219: CO2-Einsparpotenzial | L219: =L201 -> 10237083.58
B220: Bilanz | L220: =SUM(L217:L219)-L216 -> -87866087.97
B222: Betrachtung | C222: =C202 -> 2030
... 33 more rows
